Workbook

Sheet InvoiceData
A1: Seller / Company Name: | B1: Your Company Pvt Ltd
A2: Seller GSTIN: | B2: 27AAAAA0000A1Z7
A3: Seller State: | B3: Gujarat
A4: Notes: | B4: Fill invoice lines starting at row 8. Use Invoice No to group lines for the same invoice.
A7: Invoice No. | B7: Invoice Date | C7: Reverse Charge (Y/N) | D7: State | E7: Place of Supply | F7: GSTIN of Customer | G7: Customer Name | H7: Billing Address | I7: Shipping Address | J7: HSN/SAC | K7: Product/Service Description | L7: Quantity | M7: Unit | N7: Rate (₹) | O7: Taxable Value (₹) | P7: GST Rate % | Q7: CGST % | R7: CGST Amount (₹) | S7: SGST % | T7: SGST Amount (₹) | U7: IGST % | V7: IGST Amount (₹) | W7: Total Tax (₹) | X7: Total Invoice Value (₹)
A8: INV-001 | B8: 2025-09-20 | C8: N | D8: Gujarat | E8: Gujarat | F8: 24ABCDE1234F1Z5 | G8: ABC Enterprises | H8: 123, Ring Road, Surat, Gujarat - 395002 | I8: 123, Ring Road, Surat, Gujarat - 395002 | J8: 65061010 | K8: Safety Helmet | L8: 50 | M8: Nos | N8: 150 | O8: =L8*N8 -> 7500 | P8: 18 | Q8: =IF(E8=$B$3, P8/2, 0) -> 9 | R8: =O8*Q8/100 -> 675 | S8: =IF(E8=$B$3, P8/2, 0) -> 9 | T8: =O8*S8/100 -> 675 | U8: =IF(E8=$B$3, 0, P8) -> 0 | V8: =O8*U8/100 -> 0 | W8: =R8+T8+V8 -> 1350 | X8: =O8+W8 -> 8850
A9: INV-001 | B9: 2025-09-20 | C9: N | D9: Gujarat | E9: Gujarat | F9: 24ABCDE1234F1Z5 | G9: ABC Enterprises | H9: 123, Ring Road, Surat, Gujarat - 395002 | I9: 123, Ring Road, Surat, Gujarat - 395002 | J9: 65061010 | K9: Safety Visor | L9: 20 | M9: Nos | N9: 200 | O9: =L9*N9 -> 4000 | P9: 18 | Q9: 9 | R9: 360 | S9: 9 | T9: 360 | U9: 0 | V9: 0 | W9: 720 | X9: 4720
A10: INV-003 | B10: 2025-09-21 | C10: N | D10: Gujarat | E10: Goa | F10: 24ABCDE1234F1Z5 | G10: ABC Enterprises | H10: 123, Ring Road, Surat, Gujarat - 395002 | I10: 123, Ring Road, Surat, Gujarat - 395002 | J10: 65061010 | K10: Safety Visor | L10: 12 | M10: Nos | N10: 200 | O10: =L10*N10 -> 2400 | P10: 18 | Q10: =IF(E10=$B$3, P10/2, 0) -> 0 | R10: =O10*Q10/100 -> 0 | S10: =IF(E10=$B$3, P10/2, 0) -> 0 | T10: =O10*S10/100 -> 0 | U10: =IF(E10=$B$3, 0, P10) -> 18 | V10: =O10*U10/100 -> 432 | W10: =R10+T10+V10 -> 432 | X10: =O10+W10 -> 2832
O12: =L12*N12 -> 0 | Q12: 0 | R12: 0 | S12: 0 | T12: 0 | U12: 0 | V12: 0 | W12: 0 | X12: 0
O13: 0 | Q13: 0 | R13: 0 | S13: 0 | T13: 0 | U13: 0 | V13: 0 | W13: 0 | X13: 0
O14: 0 | Q14: 0 | R14: 0 | S14: 0 | T14: 0 | U14: 0 | V14: 0 | W14: 0 | X14: 0
O15: 0 | Q15: 0 | R15: 0 | S15: 0 | T15: 0 | U15: 0 | V15: 0 | W15: 0 | X15: 0
O16: 0 | Q16: 0 | R16: 0 | S16: 0 | T16: 0 | U16: 0 | V16: 0 | W16: 0 | X16: 0
O17: 0 | Q17: 0 | R17: 0 | S17: 0 | T17: 0 | U17: 0 | V17: 0 | W17: 0 | X17: 0
O18: 0 | Q18: 0 | R18: 0 | S18: 0 | T18: 0 | U18: 0 | V18: 0 | W18: 0 | X18: 0
O19: 0 | Q19: 0 | R19: 0 | S19: 0 | T19: 0 | U19: 0 | V19: 0 | W19: 0 | X19: 0
O20: 0 | Q20: 0 | R20: 0 | S20: 0 | T20: 0 | U20: 0 | V20: 0 | W20: 0 | X20: 0
O21: 0 | Q21: 0 | R21: 0 | S21: 0 | T21: 0 | U21: 0 | V21: 0 | W21: 0 | X21: 0
O22: 0 | Q22: 0 | R22: 0 | S22: 0 | T22: 0 | U22: 0 | V22: 0 | W22: 0 | X22: 0
O23: 0 | Q23: 0 | R23: 0 | S23: 0 | T23: 0 | U23: 0 | V23: 0 | W23: 0 | X23: 0
O24: 0 | Q24: 0 | R24: 0 | S24: 0 | T24: 0 | U24: 0 | V24: 0 | W24: 0 | X24: 0
O25: 0 | Q25: 0 | R25: 0 | S25: 0 | T25: 0 | U25: 0 | V25: 0 | W25: 0 | X25: 0
O26: 0 | Q26: 0 | R26: 0 | S26: 0 | T26: 0 | U26: 0 | V26: 0 | W26: 0 | X26: 0
O27: 0 | Q27: 0 | R27: 0 | S27: 0 | T27: 0 | U27: 0 | V27: 0 | W27: 0 | X27: 0
O28: 0 | Q28: 0 | R28: 0 | S28: 0 | T28: 0 | U28: 0 | V28: 0 | W28: 0 | X28: 0
O29: 0 | Q29: 0 | R29: 0 | S29: 0 | T29: 0 | U29: 0 | V29: 0 | W29: 0 | X29: 0
O30: 0 | Q30: 0 | R30: 0 | S30: 0 | T30: 0 | U30: 0 | V30: 0 | W30: 0 | X30: 0
O31: 0 | Q31: 0 | R31: 0 | S31: 0 | T31: 0 | U31: 0 | V31: 0 | W31: 0 | X31: 0
O32: 0 | Q32: 0 | R32: 0 | S32: 0 | T32: 0 | U32: 0 | V32: 0 | W32: 0 | X32: 0
O33: 0 | Q33: 0 | R33: 0 | S33: 0 | T33: 0 | U33: 0 | V33: 0 | W33: 0 | X33: 0
O34: 0 | Q34: 0 | R34: 0 | S34: 0 | T34: 0 | U34: 0 | V34: 0 | W34: 0 | X34: 0
O35: 0 | Q35: 0 | R35: 0 | S35: 0 | T35: 0 | U35: 0 | V35: 0 | W35: 0 | X35: 0
O36: 0 | Q36: 0 | R36: 0 | S36: 0 | T36: 0 | U36: 0 | V36: 0 | W36: 0 | X36: 0
O37: 0 | Q37: 0 | R37: 0 | S37: 0 | T37: 0 | U37: 0 | V37: 0 | W37: 0 | X37: 0
O38: 0 | Q38: 0 | R38: 0 | S38: 0 | T38: 0 | U38: 0 | V38: 0 | W38: 0 | X38: 0
O39: 0 | Q39: 0 | R39: 0 | S39: 0 | T39: 0 | U39: 0 | V39: 0 | W39: 0 | X39: 0
O40: 0 | Q40: =IF(E40=$B$3, P40/2, 0) -> 0 | R40: =O40*Q40/100 -> 0 | S40: =IF(E40=$B$3, P40/2, 0) -> 0 | T40: =O40*S40/100 -> 0 | U40: =IF(E40=$B$3, 0, P40) -> 0 | V40: =O40*U40/100 -> 0 | W40: =R40+T40+V40 -> 0 | X40: =O40+W40 -> 0
O41: 0 | Q41: 0 | R41: 0 | S41: 0 | T41: 0 | U41: 0 | V41: 0 | W41: 0 | X41: 0
O42: =L42*N42 -> 0 | Q42: 0 | R42: 0 | S42: 0 | T42: 0 | U42: 0 | V42: 0 | W42: 0 | X42: 0
O43: 0 | Q43: 0 | R43: 0 | S43: 0 | T43: 0 | U43: 0 | V43: 0 | W43: 0 | X43: 0
O44: 0 | Q44: 0 | R44: 0 | S44: 0 | T44: 0 | U44: 0 | V44: 0 | W44: 0 | X44: 0
O45: 0 | Q45: 0 | R45: 0 | S45: 0 | T45: 0 | U45: 0 | V45: 0 | W45: 0 | X45: 0
O46: 0 | Q46: 0 | R46: 0 | S46: 0 | T46: 0 | U46: 0 | V46: 0 | W46: 0 | X46: 0
O47: 0 | Q47: 0 | R47: 0 | S47: 0 | T47: 0 | U47: 0 | V47: 0 | W47: 0 | X47: 0
O48: 0 | Q48: 0 | R48: 0 | S48: 0 | T48: 0 | U48: 0 | V48: 0 | W48: 0 | X48: 0
O49: 0 | Q49: 0 | R49: 0 | S49: 0 | T49: 0 | U49: 0 | V49: 0 | W49: 0 | X49: 0
O50: 0 | Q50: 0 | R50: 0 | S50: 0 | T50: 0 | U50: 0 | V50: 0 | W50: 0 | X50: 0
O51: 0 | Q51: 0 | R51: 0 | S51: 0 | T51: 0 | U51: 0 | V51: 0 | W51: 0 | X51: 0
O52: 0 | Q52: 0 | R52: 0 | S52: 0 | T52: 0 | U52: 0 | V52: 0 | W52: 0 | X52: 0
O53: 0 | Q53: 0 | R53: 0 | S53: 0 | T53: 0 | U53: 0 | V53: 0 | W53: 0 | X53: 0
O54: 0 | Q54: 0 | R54: 0 | S54: 0 | T54: 0 | U54: 0 | V54: 0 | W54: 0 | X54: 0
O55: 0 | Q55: 0 | R55: 0 | S55: 0 | T55: 0 | U55: 0 | V55: 0 | W55: 0 | X55: 0
O56: 0 | Q56: 0 | R56: 0 | S56: 0 | T56: 0 | U56: 0 | V56: 0 | W56: 0 | X56: 0
O57: 0 | Q57: 0 | R57: 0 | S57: 0 | T57: 0 | U57: 0 | V57: 0 | W57: 0 | X57: 0
O58: 0 | Q58: 0 | R58: 0 | S58: 0 | T58: 0 | U58: 0 | V58: 0 | W58: 0 | X58: 0
O59: 0 | Q59: 0 | R59: 0 | S59: 0 | T59: 0 | U59: 0 | V59: 0 | W59: 0 | X59: 0
O60: 0 | Q60: 0 | R60: 0 | S60: 0 | T60: 0 | U60: 0 | V60: 0 | W60: 0 | X60: 0
O61: 0 | Q61: 0 | R61: 0 | S61: 0 | T61: 0 | U61: 0 | V61: 0 | W61: 0 | X61: 0
O62: 0 | Q62: 0 | R62: 0 | S62: 0 | T62: 0 | U62: 0 | V62: 0 | W62: 0 | X62: 0
O63: 0 | Q63: 0 | R63: 0 | S63: 0 | T63: 0 | U63: 0 | V63: 0 | W63: 0 | X63: 0
O64: 0 | Q64: 0 | R64: 0 | S64: 0 | T64: 0 | U64: 0 | V64: 0 | W64: 0 | X64: 0
O65: 0 | Q65: 0 | R65: 0 | S65: 0 | T65: 0 | U65: 0 | V65: 0 | W65: 0 | X65: 0
O66: 0 | Q66: 0 | R66: 0 | S66: 0 | T66: 0 | U66: 0 | V66: 0 | W66: 0 | X66: 0
O67: 0 | Q67: 0 | R67: 0 | S67: 0 | T67: 0 | U67: 0 | V67: 0 | W67: 0 | X67: 0
O68: 0 | Q68: 0 | R68: 0 | S68: 0 | T68: 0 | U68: 0 | V68: 0 | W68: 0 | X68: 0
O69: 0 | Q69: 0 | R69: 0 | S69: 0 | T69: 0 | U69: 0 | V69: 0 | W69: 0 | X69: 0
O70: 0 | Q70: 0 | R70: 0 | S70: 0 | T70: 0 | U70: 0 | V70: 0 | W70: 0 | X70: 0
O71: 0 | Q71: 0 | R71: 0 | S71: 0 | T71: 0 | U71: 0 | V71: 0 | W71: 0 | X71: 0
O72: 0 | Q72: =IF(E72=$B$3, P72/2, 0) -> 0 | R72: =O72*Q72/100 -> 0 | S72: =IF(E72=$B$3, P72/2, 0) -> 0 | T72: =O72*S72/100 -> 0 | U72: =IF(E72=$B$3, 0, P72) -> 0 | V72: =O72*U72/100 -> 0 | W72: =R72+T72+V72 -> 0 | X72: =O72+W72 -> 0
O73: 0 | Q73: 0 | R73: 0 | S73: 0 | T73: 0 | U73: 0 | V73: 0 | W73: 0 | X73: 0
O74: =L74*N74 -> 0 | Q74: 0 | R74: 0 | S74: 0 | T74: 0 | U74: 0 | V74: 0 | W74: 0 | X74: 0
O75: 0 | Q75: 0 | R75: 0 | S75: 0 | T75: 0 | U75: 0 | V75: 0 | W75: 0 | X75: 0
O76: 0 | Q76: 0 | R76: 0 | S76: 0 | T76: 0 | U76: 0 | V76: 0 | W76: 0 | X76: 0
O77: 0 | Q77: 0 | R77: 0 | S77: 0 | T77: 0 | U77: 0 | V77: 0 | W77: 0 | X77: 0
O78: 0 | Q78: 0 | R78: 0 | S78: 0 | T78: 0 | U78: 0 | V78: 0 | W78: 0 | X78: 0
O79: 0 | Q79: 0 | R79: 0 | S79: 0 | T79: 0 | U79: 0 | V79: 0 | W79: 0 | X79: 0
O80: 0 | Q80: 0 | R80: 0 | S80: 0 | T80: 0 | U80: 0 | V80: 0 | W80: 0 | X80: 0
O81: 0 | Q81: 0 | R81: 0 | S81: 0 | T81: 0 | U81: 0 | V81: 0 | W81: 0 | X81: 0
O82: 0 | Q82: 0 | R82: 0 | S82: 0 | T82: 0 | U82: 0 | V82: 0 | W82: 0 | X82: 0
O83: 0 | Q83: 0 | R83: 0 | S83: 0 | T83: 0 | U83: 0 | V83: 0 | W83: 0 | X83: 0
O84: 0 | Q84: 0 | R84: 0 | S84: 0 | T84: 0 | U84: 0 | V84: 0 | W84: 0 | X84: 0
O85: 0 | Q85: 0 | R85: 0 | S85: 0 | T85: 0 | U85: 0 | V85: 0 | W85: 0 | X85: 0
O86: 0 | Q86: 0 | R86: 0 | S86: 0 | T86: 0 | U86: 0 | V86: 0 | W86: 0 | X86: 0
O87: 0 | Q87: 0 | R87: 0 | S87: 0 | T87: 0 | U87: 0 | V87: 0 | W87: 0 | X87: 0
O88: 0 | Q88: 0 | R88: 0 | S88: 0 | T88: 0 | U88: 0 | V88: 0 | W88: 0 | X88: 0
O89: 0 | Q89: 0 | R89: 0 | S89: 0 | T89: 0 | U89: 0 | V89: 0 | W89: 0 | X89: 0
O90: 0 | Q90: 0 | R90: 0 | S90: 0 | T90: 0 | U90: 0 | V90: 0 | W90: 0 | X90: 0
O91: 0 | Q91: 0 | R91: 0 | S91: 0 | T91: 0 | U91: 0 | V91: 0 | W91: 0 | X91: 0
O92: 0 | Q92: 0 | R92: 0 | S92: 0 | T92: 0 | U92: 0 | V92: 0 | W92: 0 | X92: 0
O93: 0 | Q93: 0 | R93: 0 | S93: 0 | T93: 0 | U93: 0 | V93: 0 | W93: 0 | X93: 0
O94: 0 | Q94: 0 | R94: 0 | S94: 0 | T94: 0 | U94: 0 | V94: 0 | W94: 0 | X94: 0
O95: 0 | Q95: 0 | R95: 0 | S95: 0 | T95: 0 | U95: 0 | V95: 0 | W95: 0 | X95: 0
O96: 0 | Q96: 0 | R96: 0 | S96: 0 | T96: 0 | U96: 0 | V96: 0 | W96: 0 | X96: 0
O97: 0 | Q97: 0 | R97: 0 | S97: 0 | T97: 0 | U97: 0 | V97: 0 | W97: 0 | X97: 0
O98: 0 | Q98: 0 | R98: 0 | S98: 0 | T98: 0 | U98: 0 | V98: 0 | W98: 0 | X98: 0
O99: 0 | Q99: 0 | R99: 0 | S99: 0 | T99: 0 | U99: 0 | V99: 0 | W99: 0 | X99: 0
O100: 0 | Q100: 0 | R100: 0 | S100: 0 | T100: 0 | U100: 0 | V100: 0 | W100: 0 | X100: 0
O101: 0 | Q101: 0 | R101: 0 | S101: 0 | T101: 0 | U101: 0 | V101: 0 | W101: 0 | X101: 0
O102: 0 | Q102: 0 | R102: 0 | S102: 0 | T102: 0 | U102: 0 | V102: 0 | W102: 0 | X102: 0
O103: 0 | Q103: 0 | R103: 0 | S103: 0 | T103: 0 | U103: 0 | V103: 0 | W103: 0 | X103: 0
O104: 0 | Q104: =IF(E104=$B$3, P104/2, 0) -> 0 | R104: =O104*Q104/100 -> 0 | S104: 0 | T104: =O104*S104/100 -> 0 | U104: 0 | V104: =O104*U104/100 -> 0 | W104: =R104+T104+V104 -> 0 | X104: =O104+W104 -> 0
O105: 0 | Q105: 0 | R105: 0 | S105: 0 | T105: 0 | U105: 0 | V105: 0 | W105: 0 | X105: 0
O106: =L106*N106 -> 0 | Q106: 0 | R106: 0 | S106: 0 | T106: 0 | U106: 0 | V106: 0 | W106: 0 | X106: 0
O107: 0 | Q107: 0 | R107: 0 | S107: 0 | T107: 0 | U107: 0 | V107: 0 | W107: 0 | X107: 0

Sheet Printable_A4
A1: Your Company LOGO
A2: GST INVOICE (Print Ready - A4)
A4: Enter Invoice No: | B4: INV-001
A6: Seller / Company Name: | B6: =InvoiceData!B1 -> Your Company Pvt Ltd
A7: Seller GSTIN: | B7: =InvoiceData!B2 -> 27AAAAA0000A1Z7
A8: Seller State: | B8: =InvoiceData!B3 -> Gujarat
A10: Invoice No. | B10: =B4 -> INV-001
A11: Invoice Date | B11: =IF($B$4="","", IFERROR(INDEX(InvoiceData!B8:B107, MATCH($B$4, InvoiceData!$A$8:$A$107, 0)), "")) -> 2025-09-20
A12: Customer Name | B12: =IF($B$4="","", IFERROR(INDEX(InvoiceData!G8:G107, MATCH($B$4, InvoiceData!$A$8:$A$107, 0)), "")) -> ABC Enterprises
A13: Customer GSTIN | B13: =IF($B$4="","", IFERROR(INDEX(InvoiceData!F8:F107, MATCH($B$4, InvoiceData!$A$8:$A$107, 0)), "")) -> 24ABCDE1234F1Z5
A14: Billing Address | B14: =IF($B$4="","", IFERROR(INDEX(InvoiceData!H8:H107, MATCH($B$4, InvoiceData!$A$8:$A$107, 0)), "")) -> 123, Ring Road, Surat, Gujarat - 395002
A15: Place of Supply (State) | B15: =IF($B$4="","", IFERROR(INDEX(InvoiceData!E8:E107, MATCH($B$4, InvoiceData!$A$8:$A$107, 0)), "")) -> Gujarat
A18: S.No | B18: HSN/SAC | C18: Description | D18: Qty | E18: Unit | F18: Rate (₹) | G18: Taxable Value (₹) | H18: GST % | I18: CGST Amt | J18: SGST Amt | K18: IGST Amt | L18: Line Total
A19: 1 | B19: =IF($B$4="", "", IF($Z19="","", INDEX(InvoiceData!J8:J107, $Z19-7))) -> 65061010 | C19: =IF($B$4="", "", IF($Z19="","", INDEX(InvoiceData!K8:K107, $Z19-7))) -> Safety Helmet | D19: =IF($B$4="", "", IF($Z19="","", INDEX(InvoiceData!L8:L107, $Z19-7))) -> 50 | E19: =IF($B$4="", "", IF($Z19="","", INDEX(InvoiceData!M8:M107, $Z19-7))) -> Nos | F19: =IF($B$4="", "", IF($Z19="","", INDEX(InvoiceData!N8:N107, $Z19-7))) -> 150 | G19: =IF($B$4="", "", IF($Z19="","", INDEX(InvoiceData!O8:O107, $Z19-7))) -> 7500 | H19: =IF($B$4="", "", IF($Z19="","", INDEX(InvoiceData!P8:P107, $Z19-7))) -> 18 | I19: =IF($B$4="", "", IF($Z19="","", INDEX(InvoiceData!R8:R107, $Z19-7))) -> 675 | J19: =IF($B$4="", "", IF($Z19="","", INDEX(InvoiceData!T8:T107, $Z19-7))) -> 675 | K19: =IF($B$4="", "", IF($Z19="","", INDEX(InvoiceData!V8:V107, $Z19-7))) -> 0 | L19: =IF($B$4="", "", IF($Z19="","", INDEX(InvoiceData!X8:X107, $Z19-7))) -> 8850 | Z19: =IF($B$4="","", IFERROR(_xlfn.AGGREGATE(15,6,ROW(InvoiceData!$A$8:$A$207)/(InvoiceData!$A$8:$A$207=$B$4), ROWS($Z$19:Z19)), "")) -> 8
A20: =+A19+1 -> 2 | B20: =IF($B$4="", "", IF($Z20="","", INDEX(InvoiceData!J8:J107, $Z20-7))) -> 65061010 | C20: =IF($B$4="", "", IF($Z20="","", INDEX(InvoiceData!K8:K107, $Z20-7))) -> Safety Visor | D20: =IF($B$4="", "", IF($Z20="","", INDEX(InvoiceData!L8:L107, $Z20-7))) -> 20 | E20: =IF($B$4="", "", IF($Z20="","", INDEX(InvoiceData!M8:M107, $Z20-7))) -> Nos | F20: =IF($B$4="", "", IF($Z20="","", INDEX(InvoiceData!N8:N107, $Z20-7))) -> 200 | G20: =IF($B$4="", "", IF($Z20="","", INDEX(InvoiceData!O8:O107, $Z20-7))) -> 4000 | H20: =IF($B$4="", "", IF($Z20="","", INDEX(InvoiceData!P8:P107, $Z20-7))) -> 18 | I20: =IF($B$4="", "", IF($Z20="","", INDEX(InvoiceData!R8:R107, $Z20-7))) -> 360 | J20: =IF($B$4="", "", IF($Z20="","", INDEX(InvoiceData!T8:T107, $Z20-7))) -> 360 | K20: =IF($B$4="", "", IF($Z20="","", INDEX(InvoiceData!V8:V107, $Z20-7))) -> 0 | L20: =IF($B$4="", "", IF($Z20="","", INDEX(InvoiceData!X8:X107, $Z20-7))) -> 4720 | Z20: =IF($B$4="","", IFERROR(_xlfn.AGGREGATE(15,6,ROW(InvoiceData!$A$8:$A$207)/(InvoiceData!$A$8:$A$207=$B$4), ROWS($Z$19:Z20)), "")) -> 9
A21: =+A20+1 -> 3 | B21: =IF($B$4="", "", IF($Z21="","", INDEX(InvoiceData!J8:J107, $Z21-7))) ->  | C21: =IF($B$4="", "", IF($Z21="","", INDEX(InvoiceData!K8:K107, $Z21-7))) ->  | D21: =IF($B$4="", "", IF($Z21="","", INDEX(InvoiceData!L8:L107, $Z21-7))) ->  | E21: =IF($B$4="", "", IF($Z21="","", INDEX(InvoiceData!M8:M107, $Z21-7))) ->  | F21: =IF($B$4="", "", IF($Z21="","", INDEX(InvoiceData!N8:N107, $Z21-7))) ->  | G21: =IF($B$4="", "", IF($Z21="","", INDEX(InvoiceData!O8:O107, $Z21-7))) ->  | H21: =IF($B$4="", "", IF($Z21="","", INDEX(InvoiceData!P8:P107, $Z21-7))) ->  | I21: =IF($B$4="", "", IF($Z21="","", INDEX(InvoiceData!R8:R107, $Z21-7))) ->  | J21: =IF($B$4="", "", IF($Z21="","", INDEX(InvoiceData!T8:T107, $Z21-7))) ->  | K21: =IF($B$4="", "", IF($Z21="","", INDEX(InvoiceData!V8:V107, $Z21-7))) ->  | L21: =IF($B$4="", "", IF($Z21="","", INDEX(InvoiceData!X8:X107, $Z21-7))) ->  | Z21: =IF($B$4="","", IFERROR(_xlfn.AGGREGATE(15,6,ROW(InvoiceData!$A$8:$A$207)/(InvoiceData!$A$8:$A$207=$B$4), ROWS($Z$19:Z21)), "")) -> 
A22: 4 | B22: =IF($B$4="", "", IF($Z22="","", INDEX(InvoiceData!J8:J107, $Z22-7))) ->  | C22: =IF($B$4="", "", IF($Z22="","", INDEX(InvoiceData!K8:K107, $Z22-7))) ->  | D22: =IF($B$4="", "", IF($Z22="","", INDEX(InvoiceData!L8:L107, $Z22-7))) ->  | E22: =IF($B$4="", "", IF($Z22="","", INDEX(InvoiceData!M8:M107, $Z22-7))) ->  | F22: =IF($B$4="", "", IF($Z22="","", INDEX(InvoiceData!N8:N107, $Z22-7))) ->  | G22: =IF($B$4="", "", IF($Z22="","", INDEX(InvoiceData!O8:O107, $Z22-7))) ->  | H22: =IF($B$4="", "", IF($Z22="","", INDEX(InvoiceData!P8:P107, $Z22-7))) ->  | I22: =IF($B$4="", "", IF($Z22="","", INDEX(InvoiceData!R8:R107, $Z22-7))) ->  | J22: =IF($B$4="", "", IF($Z22="","", INDEX(InvoiceData!T8:T107, $Z22-7))) ->  | K22: =IF($B$4="", "", IF($Z22="","", INDEX(InvoiceData!V8:V107, $Z22-7))) ->  | L22: =IF($B$4="", "", IF($Z22="","", INDEX(InvoiceData!X8:X107, $Z22-7))) ->  | Z22: =IF($B$4="","", IFERROR(_xlfn.AGGREGATE(15,6,ROW(InvoiceData!$A$8:$A$207)/(InvoiceData!$A$8:$A$207=$B$4), ROWS($Z$19:Z22)), "")) -> 
A23: 5 | B23: =IF($B$4="", "", IF($Z23="","", INDEX(InvoiceData!J8:J107, $Z23-7))) ->  | C23: =IF($B$4="", "", IF($Z23="","", INDEX(InvoiceData!K8:K107, $Z23-7))) ->  | D23: =IF($B$4="", "", IF($Z23="","", INDEX(InvoiceData!L8:L107, $Z23-7))) ->  | E23: =IF($B$4="", "", IF($Z23="","", INDEX(InvoiceData!M8:M107, $Z23-7))) ->  | F23: =IF($B$4="", "", IF($Z23="","", INDEX(InvoiceData!N8:N107, $Z23-7))) ->  | G23: =IF($B$4="", "", IF($Z23="","", INDEX(InvoiceData!O8:O107, $Z23-7))) ->  | H23: =IF($B$4="", "", IF($Z23="","", INDEX(InvoiceData!P8:P107, $Z23-7))) ->  | I23: =IF($B$4="", "", IF($Z23="","", INDEX(InvoiceData!R8:R107, $Z23-7))) ->  | J23: =IF($B$4="", "", IF($Z23="","", INDEX(InvoiceData!T8:T107, $Z23-7))) ->  | K23: =IF($B$4="", "", IF($Z23="","", INDEX(InvoiceData!V8:V107, $Z23-7))) ->  | L23: =IF($B$4="", "", IF($Z23="","", INDEX(InvoiceData!X8:X107, $Z23-7))) ->  | Z23: =IF($B$4="","", IFERROR(_xlfn.AGGREGATE(15,6,ROW(InvoiceData!$A$8:$A$207)/(InvoiceData!$A$8:$A$207=$B$4), ROWS($Z$19:Z23)), "")) -> 
A24: 6 | B24: =IF($B$4="", "", IF($Z24="","", INDEX(InvoiceData!J8:J107, $Z24-7))) ->  | C24: =IF($B$4="", "", IF($Z24="","", INDEX(InvoiceData!K8:K107, $Z24-7))) ->  | D24: =IF($B$4="", "", IF($Z24="","", INDEX(InvoiceData!L8:L107, $Z24-7))) ->  | E24: =IF($B$4="", "", IF($Z24="","", INDEX(InvoiceData!M8:M107, $Z24-7))) ->  | F24: =IF($B$4="", "", IF($Z24="","", INDEX(InvoiceData!N8:N107, $Z24-7))) ->  | G24: =IF($B$4="", "", IF($Z24="","", INDEX(InvoiceData!O8:O107, $Z24-7))) ->  | H24: =IF($B$4="", "", IF($Z24="","", INDEX(InvoiceData!P8:P107, $Z24-7))) ->  | I24: =IF($B$4="", "", IF($Z24="","", INDEX(InvoiceData!R8:R107, $Z24-7))) ->  | J24: =IF($B$4="", "", IF($Z24="","", INDEX(InvoiceData!T8:T107, $Z24-7))) ->  | K24: =IF($B$4="", "", IF($Z24="","", INDEX(InvoiceData!V8:V107, $Z24-7))) ->  | L24: =IF($B$4="", "", IF($Z24="","", INDEX(InvoiceData!X8:X107, $Z24-7))) ->  | Z24: =IF($B$4="","", IFERROR(_xlfn.AGGREGATE(15,6,ROW(InvoiceData!$A$8:$A$207)/(InvoiceData!$A$8:$A$207=$B$4), ROWS($Z$19:Z24)), "")) -> 
A25: 7 | B25: =IF($B$4="", "", IF($Z25="","", INDEX(InvoiceData!J8:J107, $Z25-7))) ->  | C25: =IF($B$4="", "", IF($Z25="","", INDEX(InvoiceData!K8:K107, $Z25-7))) ->  | D25: =IF($B$4="", "", IF($Z25="","", INDEX(InvoiceData!L8:L107, $Z25-7))) ->  | E25: =IF($B$4="", "", IF($Z25="","", INDEX(InvoiceData!M8:M107, $Z25-7))) ->  | F25: =IF($B$4="", "", IF($Z25="","", INDEX(InvoiceData!N8:N107, $Z25-7))) ->  | G25: =IF($B$4="", "", IF($Z25="","", INDEX(InvoiceData!O8:O107, $Z25-7))) ->  | H25: =IF($B$4="", "", IF($Z25="","", INDEX(InvoiceData!P8:P107, $Z25-7))) ->  | I25: =IF($B$4="", "", IF($Z25="","", INDEX(InvoiceData!R8:R107, $Z25-7))) ->  | J25: =IF($B$4="", "", IF($Z25="","", INDEX(InvoiceData!T8:T107, $Z25-7))) ->  | K25: =IF($B$4="", "", IF($Z25="","", INDEX(InvoiceData!V8:V107, $Z25-7))) ->  | L25: =IF($B$4="", "", IF($Z25="","", INDEX(InvoiceData!X8:X107, $Z25-7))) ->  | Z25: =IF($B$4="","", IFERROR(_xlfn.AGGREGATE(15,6,ROW(InvoiceData!$A$8:$A$207)/(InvoiceData!$A$8:$A$207=$B$4), ROWS($Z$19:Z25)), "")) -> 
A26: 8 | B26: =IF($B$4="", "", IF($Z26="","", INDEX(InvoiceData!J8:J107, $Z26-7))) ->  | C26: =IF($B$4="", "", IF($Z26="","", INDEX(InvoiceData!K8:K107, $Z26-7))) ->  | D26: =IF($B$4="", "", IF($Z26="","", INDEX(InvoiceData!L8:L107, $Z26-7))) ->  | E26: =IF($B$4="", "", IF($Z26="","", INDEX(InvoiceData!M8:M107, $Z26-7))) ->  | F26: =IF($B$4="", "", IF($Z26="","", INDEX(InvoiceData!N8:N107, $Z26-7))) ->  | G26: =IF($B$4="", "", IF($Z26="","", INDEX(InvoiceData!O8:O107, $Z26-7))) ->  | H26: =IF($B$4="", "", IF($Z26="","", INDEX(InvoiceData!P8:P107, $Z26-7))) ->  | I26: =IF($B$4="", "", IF($Z26="","", INDEX(InvoiceData!R8:R107, $Z26-7))) ->  | J26: =IF($B$4="", "", IF($Z26="","", INDEX(InvoiceData!T8:T107, $Z26-7))) ->  | K26: =IF($B$4="", "", IF($Z26="","", INDEX(InvoiceData!V8:V107, $Z26-7))) ->  | L26: =IF($B$4="", "", IF($Z26="","", INDEX(InvoiceData!X8:X107, $Z26-7))) ->  | Z26: =IF($B$4="","", IFERROR(_xlfn.AGGREGATE(15,6,ROW(InvoiceData!$A$8:$A$207)/(InvoiceData!$A$8:$A$207=$B$4), ROWS($Z$19:Z26)), "")) -> 
A27: 9 | B27: =IF($B$4="", "", IF($Z27="","", INDEX(InvoiceData!J8:J107, $Z27-7))) ->  | C27: =IF($B$4="", "", IF($Z27="","", INDEX(InvoiceData!K8:K107, $Z27-7))) ->  | D27: =IF($B$4="", "", IF($Z27="","", INDEX(InvoiceData!L8:L107, $Z27-7))) ->  | E27: =IF($B$4="", "", IF($Z27="","", INDEX(InvoiceData!M8:M107, $Z27-7))) ->  | F27: =IF($B$4="", "", IF($Z27="","", INDEX(InvoiceData!N8:N107, $Z27-7))) ->  | G27: =IF($B$4="", "", IF($Z27="","", INDEX(InvoiceData!O8:O107, $Z27-7))) ->  | H27: =IF($B$4="", "", IF($Z27="","", INDEX(InvoiceData!P8:P107, $Z27-7))) ->  | I27: =IF($B$4="", "", IF($Z27="","", INDEX(InvoiceData!R8:R107, $Z27-7))) ->  | J27: =IF($B$4="", "", IF($Z27="","", INDEX(InvoiceData!T8:T107, $Z27-7))) ->  | K27: =IF($B$4="", "", IF($Z27="","", INDEX(InvoiceData!V8:V107, $Z27-7))) ->  | L27: =IF($B$4="", "", IF($Z27="","", INDEX(InvoiceData!X8:X107, $Z27-7))) ->  | Z27: =IF($B$4="","", IFERROR(_xlfn.AGGREGATE(15,6,ROW(InvoiceData!$A$8:$A$207)/(InvoiceData!$A$8:$A$207=$B$4), ROWS($Z$19:Z27)), "")) -> 
A28: 10 | B28: =IF($B$4="", "", IF($Z28="","", INDEX(InvoiceData!J8:J107, $Z28-7))) ->  | C28: =IF($B$4="", "", IF($Z28="","", INDEX(InvoiceData!K8:K107, $Z28-7))) ->  | D28: =IF($B$4="", "", IF($Z28="","", INDEX(InvoiceData!L8:L107, $Z28-7))) ->  | E28: =IF($B$4="", "", IF($Z28="","", INDEX(InvoiceData!M8:M107, $Z28-7))) ->  | F28: =IF($B$4="", "", IF($Z28="","", INDEX(InvoiceData!N8:N107, $Z28-7))) ->  | G28: =IF($B$4="", "", IF($Z28="","", INDEX(InvoiceData!O8:O107, $Z28-7))) ->  | H28: =IF($B$4="", "", IF($Z28="","", INDEX(InvoiceData!P8:P107, $Z28-7))) ->  | I28: =IF($B$4="", "", IF($Z28="","", INDEX(InvoiceData!R8:R107, $Z28-7))) ->  | J28: =IF($B$4="", "", IF($Z28="","", INDEX(InvoiceData!T8:T107, $Z28-7))) ->  | K28: =IF($B$4="", "", IF($Z28="","", INDEX(InvoiceData!V8:V107, $Z28-7))) ->  | L28: =IF($B$4="", "", IF($Z28="","", INDEX(InvoiceData!X8:X107, $Z28-7))) ->  | Z28: =IF($B$4="","", IFERROR(_xlfn.AGGREGATE(15,6,ROW(InvoiceData!$A$8:$A$207)/(InvoiceData!$A$8:$A$207=$B$4), ROWS($Z$19:Z28)), "")) -> 
A29: 11 | B29: =IF($B$4="", "", IF($Z29="","", INDEX(InvoiceData!J8:J107, $Z29-7))) ->  | C29: =IF($B$4="", "", IF($Z29="","", INDEX(InvoiceData!K8:K107, $Z29-7))) ->  | D29: =IF($B$4="", "", IF($Z29="","", INDEX(InvoiceData!L8:L107, $Z29-7))) ->  | E29: =IF($B$4="", "", IF($Z29="","", INDEX(InvoiceData!M8:M107, $Z29-7))) ->  | F29: =IF($B$4="", "", IF($Z29="","", INDEX(InvoiceData!N8:N107, $Z29-7))) ->  | G29: =IF($B$4="", "", IF($Z29="","", INDEX(InvoiceData!O8:O107, $Z29-7))) ->  | H29: =IF($B$4="", "", IF($Z29="","", INDEX(InvoiceData!P8:P107, $Z29-7))) ->  | I29: =IF($B$4="", "", IF($Z29="","", INDEX(InvoiceData!R8:R107, $Z29-7))) ->  | J29: =IF($B$4="", "", IF($Z29="","", INDEX(InvoiceData!T8:T107, $Z29-7))) ->  | K29: =IF($B$4="", "", IF($Z29="","", INDEX(InvoiceData!V8:V107, $Z29-7))) ->  | L29: =IF($B$4="", "", IF($Z29="","", INDEX(InvoiceData!X8:X107, $Z29-7))) ->  | Z29: =IF($B$4="","", IFERROR(_xlfn.AGGREGATE(15,6,ROW(InvoiceData!$A$8:$A$207)/(InvoiceData!$A$8:$A$207=$B$4), ROWS($Z$19:Z29)), "")) -> 
A30: 12 | B30: =IF($B$4="", "", IF($Z30="","", INDEX(InvoiceData!J8:J107, $Z30-7))) ->  | C30: =IF($B$4="", "", IF($Z30="","", INDEX(InvoiceData!K8:K107, $Z30-7))) ->  | D30: =IF($B$4="", "", IF($Z30="","", INDEX(InvoiceData!L8:L107, $Z30-7))) ->  | E30: =IF($B$4="", "", IF($Z30="","", INDEX(InvoiceData!M8:M107, $Z30-7))) ->  | F30: =IF($B$4="", "", IF($Z30="","", INDEX(InvoiceData!N8:N107, $Z30-7))) ->  | G30: =IF($B$4="", "", IF($Z30="","", INDEX(InvoiceData!O8:O107, $Z30-7))) ->  | H30: =IF($B$4="", "", IF($Z30="","", INDEX(InvoiceData!P8:P107, $Z30-7))) ->  | I30: =IF($B$4="", "", IF($Z30="","", INDEX(InvoiceData!R8:R107, $Z30-7))) ->  | J30: =IF($B$4="", "", IF($Z30="","", INDEX(InvoiceData!T8:T107, $Z30-7))) ->  | K30: =IF($B$4="", "", IF($Z30="","", INDEX(InvoiceData!V8:V107, $Z30-7))) ->  | L30: =IF($B$4="", "", IF($Z30="","", INDEX(InvoiceData!X8:X107, $Z30-7))) ->  | Z30: =IF($B$4="","", IFERROR(_xlfn.AGGREGATE(15,6,ROW(InvoiceData!$A$8:$A$207)/(InvoiceData!$A$8:$A$207=$B$4), ROWS($Z$19:Z30)), "")) -> 
A31: 13 | B31: =IF($B$4="", "", IF($Z31="","", INDEX(InvoiceData!J8:J107, $Z31-7))) ->  | C31: =IF($B$4="", "", IF($Z31="","", INDEX(InvoiceData!K8:K107, $Z31-7))) ->  | D31: =IF($B$4="", "", IF($Z31="","", INDEX(InvoiceData!L8:L107, $Z31-7))) ->  | E31: =IF($B$4="", "", IF($Z31="","", INDEX(InvoiceData!M8:M107, $Z31-7))) ->  | F31: =IF($B$4="", "", IF($Z31="","", INDEX(InvoiceData!N8:N107, $Z31-7))) ->  | G31: =IF($B$4="", "", IF($Z31="","", INDEX(InvoiceData!O8:O107, $Z31-7))) ->  | H31: =IF($B$4="", "", IF($Z31="","", INDEX(InvoiceData!P8:P107, $Z31-7))) ->  | I31: =IF($B$4="", "", IF($Z31="","", INDEX(InvoiceData!R8:R107, $Z31-7))) ->  | J31: =IF($B$4="", "", IF($Z31="","", INDEX(InvoiceData!T8:T107, $Z31-7))) ->  | K31: =IF($B$4="", "", IF($Z31="","", INDEX(InvoiceData!V8:V107, $Z31-7))) ->  | L31: =IF($B$4="", "", IF($Z31="","", INDEX(InvoiceData!X8:X107, $Z31-7))) ->  | Z31: =IF($B$4="","", IFERROR(_xlfn.AGGREGATE(15,6,ROW(InvoiceData!$A$8:$A$207)/(InvoiceData!$A$8:$A$207=$B$4), ROWS($Z$19:Z31)), "")) -> 
A32: 14 | B32: =IF($B$4="", "", IF($Z32="","", INDEX(InvoiceData!J8:J107, $Z32-7))) ->  | C32: =IF($B$4="", "", IF($Z32="","", INDEX(InvoiceData!K8:K107, $Z32-7))) ->  | D32: =IF($B$4="", "", IF($Z32="","", INDEX(InvoiceData!L8:L107, $Z32-7))) ->  | E32: =IF($B$4="", "", IF($Z32="","", INDEX(InvoiceData!M8:M107, $Z32-7))) ->  | F32: =IF($B$4="", "", IF($Z32="","", INDEX(InvoiceData!N8:N107, $Z32-7))) ->  | G32: =IF($B$4="", "", IF($Z32="","", INDEX(InvoiceData!O8:O107, $Z32-7))) ->  | H32: =IF($B$4="", "", IF($Z32="","", INDEX(InvoiceData!P8:P107, $Z32-7))) ->  | I32: =IF($B$4="", "", IF($Z32="","", INDEX(InvoiceData!R8:R107, $Z32-7))) ->  | J32: =IF($B$4="", "", IF($Z32="","", INDEX(InvoiceData!T8:T107, $Z32-7))) ->  | K32: =IF($B$4="", "", IF($Z32="","", INDEX(InvoiceData!V8:V107, $Z32-7))) ->  | L32: =IF($B$4="", "", IF($Z32="","", INDEX(InvoiceData!X8:X107, $Z32-7))) ->  | Z32: =IF($B$4="","", IFERROR(_xlfn.AGGREGATE(15,6,ROW(InvoiceData!$A$8:$A$207)/(InvoiceData!$A$8:$A$207=$B$4), ROWS($Z$19:Z32)), "")) -> 
A33: 15 | B33: =IF($B$4="", "", IF($Z33="","", INDEX(InvoiceData!J8:J107, $Z33-7))) ->  | C33: =IF($B$4="", "", IF($Z33="","", INDEX(InvoiceData!K8:K107, $Z33-7))) ->  | D33: =IF($B$4="", "", IF($Z33="","", INDEX(InvoiceData!L8:L107, $Z33-7))) ->  | E33: =IF($B$4="", "", IF($Z33="","", INDEX(InvoiceData!M8:M107, $Z33-7))) ->  | F33: =IF($B$4="", "", IF($Z33="","", INDEX(InvoiceData!N8:N107, $Z33-7))) ->  | G33: =IF($B$4="", "", IF($Z33="","", INDEX(InvoiceData!O8:O107, $Z33-7))) ->  | H33: =IF($B$4="", "", IF($Z33="","", INDEX(InvoiceData!P8:P107, $Z33-7))) ->  | I33: =IF($B$4="", "", IF($Z33="","", INDEX(InvoiceData!R8:R107, $Z33-7))) ->  | J33: =IF($B$4="", "", IF($Z33="","", INDEX(InvoiceData!T8:T107, $Z33-7))) ->  | K33: =IF($B$4="", "", IF($Z33="","", INDEX(InvoiceData!V8:V107, $Z33-7))) ->  | L33: =IF($B$4="", "", IF($Z33="","", INDEX(InvoiceData!X8:X107, $Z33-7))) ->  | Z33: =IF($B$4="","", IFERROR(_xlfn.AGGREGATE(15,6,ROW(InvoiceData!$A$8:$A$207)/(InvoiceData!$A$8:$A$207=$B$4), ROWS($Z$19:Z33)), "")) -> 
A34: 16 | B34: =IF($B$4="", "", IF($Z34="","", INDEX(InvoiceData!J8:J107, $Z34-7))) ->  | C34: =IF($B$4="", "", IF($Z34="","", INDEX(InvoiceData!K8:K107, $Z34-7))) ->  | D34: =IF($B$4="", "", IF($Z34="","", INDEX(InvoiceData!L8:L107, $Z34-7))) ->  | E34: =IF($B$4="", "", IF($Z34="","", INDEX(InvoiceData!M8:M107, $Z34-7))) ->  | F34: =IF($B$4="", "", IF($Z34="","", INDEX(InvoiceData!N8:N107, $Z34-7))) ->  | G34: =IF($B$4="", "", IF($Z34="","", INDEX(InvoiceData!O8:O107, $Z34-7))) ->  | H34: =IF($B$4="", "", IF($Z34="","", INDEX(InvoiceData!P8:P107, $Z34-7))) ->  | I34: =IF($B$4="", "", IF($Z34="","", INDEX(InvoiceData!R8:R107, $Z34-7))) ->  | J34: =IF($B$4="", "", IF($Z34="","", INDEX(InvoiceData!T8:T107, $Z34-7))) ->  | K34: =IF($B$4="", "", IF($Z34="","", INDEX(InvoiceData!V8:V107, $Z34-7))) ->  | L34: =IF($B$4="", "", IF($Z34="","", INDEX(InvoiceData!X8:X107, $Z34-7))) ->  | Z34: =IF($B$4="","", IFERROR(_xlfn.AGGREGATE(15,6,ROW(InvoiceData!$A$8:$A$207)/(InvoiceData!$A$8:$A$207=$B$4), ROWS($Z$19:Z34)), "")) -> 
A35: 17 | B35: =IF($B$4="", "", IF($Z35="","", INDEX(InvoiceData!J8:J107, $Z35-7))) ->  | C35: =IF($B$4="", "", IF($Z35="","", INDEX(InvoiceData!K8:K107, $Z35-7))) ->  | D35: =IF($B$4="", "", IF($Z35="","", INDEX(InvoiceData!L8:L107, $Z35-7))) ->  | E35: =IF($B$4="", "", IF($Z35="","", INDEX(InvoiceData!M8:M107, $Z35-7))) ->  | F35: =IF($B$4="", "", IF($Z35="","", INDEX(InvoiceData!N8:N107, $Z35-7))) ->  | G35: =IF($B$4="", "", IF($Z35="","", INDEX(InvoiceData!O8:O107, $Z35-7))) ->  | H35: =IF($B$4="", "", IF($Z35="","", INDEX(InvoiceData!P8:P107, $Z35-7))) ->  | I35: =IF($B$4="", "", IF($Z35="","", INDEX(InvoiceData!R8:R107, $Z35-7))) ->  | J35: =IF($B$4="", "", IF($Z35="","", INDEX(InvoiceData!T8:T107, $Z35-7))) ->  | K35: =IF($B$4="", "", IF($Z35="","", INDEX(InvoiceData!V8:V107, $Z35-7))) ->  | L35: =IF($B$4="", "", IF($Z35="","", INDEX(InvoiceData!X8:X107, $Z35-7))) ->  | Z35: =IF($B$4="","", IFERROR(_xlfn.AGGREGATE(15,6,ROW(InvoiceData!$A$8:$A$207)/(InvoiceData!$A$8:$A$207=$B$4), ROWS($Z$19:Z35)), "")) -> 
A36: 18 | B36: =IF($B$4="", "", IF($Z36="","", INDEX(InvoiceData!J8:J107, $Z36-7))) ->  | C36: =IF($B$4="", "", IF($Z36="","", INDEX(InvoiceData!K8:K107, $Z36-7))) ->  | D36: =IF($B$4="", "", IF($Z36="","", INDEX(InvoiceData!L8:L107, $Z36-7))) ->  | E36: =IF($B$4="", "", IF($Z36="","", INDEX(InvoiceData!M8:M107, $Z36-7))) ->  | F36: =IF($B$4="", "", IF($Z36="","", INDEX(InvoiceData!N8:N107, $Z36-7))) ->  | G36: =IF($B$4="", "", IF($Z36="","", INDEX(InvoiceData!O8:O107, $Z36-7))) ->  | H36: =IF($B$4="", "", IF($Z36="","", INDEX(InvoiceData!P8:P107, $Z36-7))) ->  | I36: =IF($B$4="", "", IF($Z36="","", INDEX(InvoiceData!R8:R107, $Z36-7))) ->  | J36: =IF($B$4="", "", IF($Z36="","", INDEX(InvoiceData!T8:T107, $Z36-7))) ->  | K36: =IF($B$4="", "", IF($Z36="","", INDEX(InvoiceData!V8:V107, $Z36-7))) ->  | L36: =IF($B$4="", "", IF($Z36="","", INDEX(InvoiceData!X8:X107, $Z36-7))) ->  | Z36: =IF($B$4="","", IFERROR(_xlfn.AGGREGATE(15,6,ROW(InvoiceData!$A$8:$A$207)/(InvoiceData!$A$8:$A$207=$B$4), ROWS($Z$19:Z36)), "")) -> 
A37: 19 | B37: =IF($B$4="", "", IF($Z37="","", INDEX(InvoiceData!J8:J107, $Z37-7))) ->  | C37: =IF($B$4="", "", IF($Z37="","", INDEX(InvoiceData!K8:K107, $Z37-7))) ->  | D37: =IF($B$4="", "", IF($Z37="","", INDEX(InvoiceData!L8:L107, $Z37-7))) ->  | E37: =IF($B$4="", "", IF($Z37="","", INDEX(InvoiceData!M8:M107, $Z37-7))) ->  | F37: =IF($B$4="", "", IF($Z37="","", INDEX(InvoiceData!N8:N107, $Z37-7))) ->  | G37: =IF($B$4="", "", IF($Z37="","", INDEX(InvoiceData!O8:O107, $Z37-7))) ->  | H37: =IF($B$4="", "", IF($Z37="","", INDEX(InvoiceData!P8:P107, $Z37-7))) ->  | I37: =IF($B$4="", "", IF($Z37="","", INDEX(InvoiceData!R8:R107, $Z37-7))) ->  | J37: =IF($B$4="", "", IF($Z37="","", INDEX(InvoiceData!T8:T107, $Z37-7))) ->  | K37: =IF($B$4="", "", IF($Z37="","", INDEX(InvoiceData!V8:V107, $Z37-7))) ->  | L37: =IF($B$4="", "", IF($Z37="","", INDEX(InvoiceData!X8:X107, $Z37-7))) ->  | Z37: =IF($B$4="","", IFERROR(_xlfn.AGGREGATE(15,6,ROW(InvoiceData!$A$8:$A$207)/(InvoiceData!$A$8:$A$207=$B$4), ROWS($Z$19:Z37)), "")) -> 
A38: 20 | B38: =IF($B$4="", "", IF($Z38="","", INDEX(InvoiceData!J8:J107, $Z38-7))) ->  | C38: =IF($B$4="", "", IF($Z38="","", INDEX(InvoiceData!K8:K107, $Z38-7))) ->  | D38: =IF($B$4="", "", IF($Z38="","", INDEX(InvoiceData!L8:L107, $Z38-7))) ->  | E38: =IF($B$4="", "", IF($Z38="","", INDEX(InvoiceData!M8:M107, $Z38-7))) ->  | F38: =IF($B$4="", "", IF($Z38="","", INDEX(InvoiceData!N8:N107, $Z38-7))) ->  | G38: =IF($B$4="", "", IF($Z38="","", INDEX(InvoiceData!O8:O107, $Z38-7))) ->  | H38: =IF($B$4="", "", IF($Z38="","", INDEX(InvoiceData!P8:P107, $Z38-7))) ->  | I38: =IF($B$4="", "", IF($Z38="","", INDEX(InvoiceData!R8:R107, $Z38-7))) ->  | J38: =IF($B$4="", "", IF($Z38="","", INDEX(InvoiceData!T8:T107, $Z38-7))) ->  | K38: =IF($B$4="", "", IF($Z38="","", INDEX(InvoiceData!V8:V107, $Z38-7))) ->  | L38: =IF($B$4="", "", IF($Z38="","", INDEX(InvoiceData!X8:X107, $Z38-7))) ->  | Z38: =IF($B$4="","", IFERROR(_xlfn.AGGREGATE(15,6,ROW(InvoiceData!$A$8:$A$207)/(InvoiceData!$A$8:$A$207=$B$4), ROWS($Z$19:Z38)), "")) -> 
A40: Totals: | B40: =IF($B$4="","", SUMIF(InvoiceData!$A$8:$A$107, $B$4, InvoiceData!O8:O107)) -> 11500
A41: Total CGST: | B41: =IF($B$4="","", SUMIF(InvoiceData!$A$8:$A$107, $B$4, InvoiceData!R8:R107)) -> 1035
A42: Total SGST: | B42: =IF($B$4="","", SUMIF(InvoiceData!$A$8:$A$107, $B$4, InvoiceData!T8:T107)) -> 1035
A43: Total IGST: | B43: =IF($B$4="","", SUMIF(InvoiceData!$A$8:$A$107, $B$4, InvoiceData!V8:V107)) -> 0
A44: Total Tax: | B44: =IF($B$4="","", SUMIF(InvoiceData!$A$8:$A$107, $B$4, InvoiceData!W8:W107)) -> 2070
A45: Invoice Total: | B45: =IF($B$4="","", SUMIF(InvoiceData!$A$8:$A$107, $B$4, InvoiceData!X8:X107)) -> 13570
A48: Bank: Your Bank Name | A/C: 1234567890 | IFSC: ABCD0123456
E51: For Your Company Pvt Ltd
E54: __________________________
E55: Authorised Signatory

Sheet Help & Macros
A1: How to use this workbook - Quick Steps
A2: 1) Enter Invoice lines in the InvoiceData sheet starting row 8. Use Invoice No to group items.
A3: 2) Go to Printable_A4 sheet, type the Invoice No in cell B4 to generate print view.
A4: 3) To insert your logo, use the 'Insert Logo' macro (instructions below) or Insert -> Pictures.
A5: 4) To export the printable sheet to PDF named as the Invoice No, run the ExportPrintableToPDF macro.
A6: 5) To auto-insert the Next Invoice No into a new row, use the InsertNextInvoice macro.
A16: IMPORTANT: Macros require this workbook to be saved as a Macro-Enabled Workbook (.xlsm). After adding macros, save as .xlsm.

Sheet Controls
A1: Next Invoice Number (example)
A2: If you have Excel 365, paste this in A8 to auto-generate next number:
A4: If not using Excel 365, enter next invoice manually in A8.
A8: ="INV-" & TEXT(IFERROR(MAX(--RIGHT(InvoiceData!A8:A107,3)),0)+1, "000") -> INV-002
